[Event "*** Titled Tuesday Blitz"]
[Site "Chess.com"]
[Date "2020.05.19"]
[Round "10"]
[White "mirandamikadze"]
[Black "Hippotaner"]
[Result "0-1"]
[WhiteElo "2018"]
[BlackElo "2314"]
[TimeControl "180+1"]
[EndTime "13:52:31 PDT"]
[Termination "Hippotaner won by resignation"]

1. e4 {[%clk 0:03:00.9]} 1... c5 {[%clk 0:02:58.5]} 2. c3 {[%clk 0:03:00.7]}
2... Nf6 {[%clk 0:02:56.9]} 3. e5 {[%clk 0:03:00.9]} 3... Nd5 {[%clk 0:02:57.1]}
4. d4 {[%clk 0:03:01.5]} 4... cxd4 {[%clk 0:02:57.6]} 5. cxd4 {[%clk 0:03:01.9]}
5... e6 {[%clk 0:02:58.2]} 6. Nf3 {[%clk 0:02:59.2]} 6... d6 {[%clk 0:02:58.5]}
7. a3 {[%clk 0:02:59.2]} 7... Nc6 {[%clk 0:02:58.9]} 8. Bd3 {[%clk 0:02:59.5]}
8... Be7 {[%clk 0:02:58.4]} 9. O-O {[%clk 0:02:59.3]} 9... dxe5 {[%clk 0:02:59]}
10. Qe2 {[%clk 0:03:00]} 10... exd4 {[%clk 0:02:56]} 11. Rd1 {[%clk 0:02:58.7]}
11... O-O {[%clk 0:02:54.4]} 12. b4 {[%clk 0:02:47.6]} 12... Bf6 {[%clk
0:02:50]} 13. b5 {[%clk 0:02:40.5]} 13... Na5 {[%clk 0:02:49.7]} 14. Bb2 {[%clk
0:02:38.3]} 14... Nb3 {[%clk 0:02:43.7]} 15. Bxh7+ {[%clk 0:02:16.1]} 15... Kxh7
{[%clk 0:02:36.1]} 16. Qd3+ {[%clk 0:02:14.6]} 16... g6 {[%clk 0:02:36.5]} 17.
Qxb3 {[%clk 0:02:14.3]} 17... e5 {[%clk 0:02:33.8]} 18. Nbd2 {[%clk 0:02:13.1]}
18... Be6 {[%clk 0:02:31.6]} 19. Ne4 {[%clk 0:02:10.3]} 19... Nc3 {[%clk
0:02:28.1]} 20. Qxc3 {[%clk 0:01:55.2]} 20... dxc3 {[%clk 0:02:27.4]} 21. Rxd8
{[%clk 0:01:54.5]} 21... cxb2 {[%clk 0:02:26.2]} 22. Nxf6+ {[%clk 0:01:53.9]}
22... Kg7 {[%clk 0:02:26.4]} 23. Rb1 {[%clk 0:01:52.6]} 23... Rfxd8 {[%clk
0:02:25.4]} 24. Ne4 {[%clk 0:01:52.3]} 24... Ba2 {[%clk 0:02:24]} 0-1

[Event "*** Titled Tuesday Blitz"]
[Site "Chess.com"]
[Date "2020.05.19"]
[Round "10"]
[White "amiralfio"]
[Black "GMartin_Petrov"]
[Result "0-1"]
[WhiteElo "2449"]
[BlackElo "2604"]
[TimeControl "180+1"]
[EndTime "13:52:51 PDT"]
[Termination "GMartin_Petrov won by resignation"]

1. d4 {[%clk 0:02:41.6]} 1... Nf6 {[%clk 0:02:59.1]} 2. Bf4 {[%clk 0:02:41.8]}
2... e6 {[%clk 0:02:58.9]} 3. e3 {[%clk 0:02:41.2]} 3... d5 {[%clk 0:02:58.9]}
4. Nf3 {[%clk 0:02:40.9]} 4... Bd6 {[%clk 0:02:59.3]} 5. Bg3 {[%clk 0:02:41.1]}
5... O-O {[%clk 0:02:57.7]} 6. Nbd2 {[%clk 0:02:41]} 6... c5 {[%clk 0:02:57.5]}
7. c3 {[%clk 0:02:40.6]} 7... b6 {[%clk 0:02:57.4]} 8. Ne5 {[%clk 0:02:39.4]}
8... Bb7 {[%clk 0:02:56]} 9. Bd3 {[%clk 0:02:38.8]} 9... Nc6 {[%clk 0:02:55.4]}
10. f4 {[%clk 0:02:37.3]} 10... Ne7 {[%clk 0:02:51.7]} 11. O-O {[%clk 0:02:36]}
11... Nf5 {[%clk 0:02:42.1]} 12. Bf2 {[%clk 0:02:33.5]} 12... Ne4 {[%clk
0:02:41.6]} 13. Nxe4 {[%clk 0:02:11.3]} 13... dxe4 {[%clk 0:02:40.9]} 14. Be2
{[%clk 0:02:12.2]} 14... cxd4 {[%clk 0:02:35.2]} 15. cxd4 {[%clk 0:02:11.4]}
15... Rc8 {[%clk 0:02:32.1]} 16. g4 {[%clk 0:02:09.3]} 16... Ne7 {[%clk
0:02:31.9]} 17. Qa4 {[%clk 0:02:05]} 17... Bd5 {[%clk 0:02:22.2]} 18. Rac1
{[%clk 0:01:52.3]} 18... f6 {[%clk 0:02:20.2]} 19. Nc4 {[%clk 0:01:42.3]} 19...
Bb8 {[%clk 0:02:16.5]} 20. Nd2 {[%clk 0:01:37.2]} 20... Qd6 {[%clk 0:02:07.4]}
0-1

[Event "*** Titled Tuesday Blitz"]
[Site "Chess.com"]
[Date "2020.05.19"]
[Round "10"]
[White "Shivagami"]
[Black "Anna_Ko_Rnd"]
[Result "1-0"]
[WhiteElo "2172"]
[BlackElo "1666"]
[TimeControl "180+1"]
[EndTime "13:53:20 PDT"]
[Termination "Shivagami won by checkmate"]

1. d4 {[%clk 0:03:00.9]} 1... Nf6 {[%clk 0:02:59.3]} 2. c4 {[%clk 0:03:01.1]}
2... e6 {[%clk 0:02:59.6]} 3. Nc3 {[%clk 0:02:58.9]} 3... Bb4 {[%clk 0:02:59.2]}
4. f3 {[%clk 0:02:58.7]} 4... d5 {[%clk 0:02:57.1]} 5. cxd5 {[%clk 0:02:52]}
5... exd5 {[%clk 0:02:56]} 6. a3 {[%clk 0:02:50.9]} 6... Bxc3+ {[%clk
0:02:55.6]} 7. bxc3 {[%clk 0:02:51.8]} 7... O-O {[%clk 0:02:54.2]} 8. Bg5 {[%clk
0:02:52.1]} 8... h6 {[%clk 0:02:53.5]} 9. Bh4 {[%clk 0:02:52.2]} 9... Qd6 {[%clk
0:02:52.9]} 10. e3 {[%clk 0:02:46.1]} 10... Be6 {[%clk 0:02:44.5]} 11. Bd3
{[%clk 0:02:45.2]} 11... c5 {[%clk 0:02:41.9]} 12. Ne2 {[%clk 0:02:34.4]} 12...
cxd4 {[%clk 0:02:39.6]} 13. Nxd4 {[%clk 0:02:24]} 13... Nbd7 {[%clk 0:02:35.2]}
14. O-O {[%clk 0:02:22.4]} 14... Ne5 {[%clk 0:02:31.4]} 15. Bxf6 {[%clk
0:02:21.3]} 15... gxf6 {[%clk 0:02:30.1]} 16. Bf5 {[%clk 0:02:18]} 16... Rac8
{[%clk 0:02:23]} 17. f4 {[%clk 0:02:17.4]} 17... Ng6 {[%clk 0:02:12.9]} 18. Nxe6
{[%clk 0:02:07.7]} 18... fxe6 {[%clk 0:02:06.1]} 19. Bxg6 {[%clk 0:02:08.3]}
19... Qc5 {[%clk 0:02:06.4]} 20. Qg4 {[%clk 0:02:00.4]} 20... Qxe3+ {[%clk
0:02:04.4]} 21. Kh1 {[%clk 0:02:00.9]} 21... Kh8 {[%clk 0:02:02]} 22. Rae1
{[%clk 0:01:59.1]} 22... Qxc3 {[%clk 0:02:02]} 23. Rxe6 {[%clk 0:01:58.7]} 23...
Qxa3 {[%clk 0:01:59.4]} 24. Qh5 {[%clk 0:01:56.5]} 24... Kg7 {[%clk 0:01:56.7]}
25. Bf5 {[%clk 0:01:55.4]} 25... Rc1 {[%clk 0:01:49.9]} 26. Qg6+ {[%clk
0:01:54.2]} 26... Kh8 {[%clk 0:01:49.3]} 27. Qh7# {[%clk 0:01:54.8]} 1-0

[Event "*** Titled Tuesday Blitz"]
[Site "Chess.com"]
[Date "2020.05.19"]
[Round "10"]
[White "stolencandy13"]
[Black "Supernotar"]
[Result "1-0"]
[WhiteElo "2568"]
[BlackElo "2653"]
[TimeControl "180+1"]
[EndTime "13:53:25 PDT"]
[Termination "stolencandy13 won by resignation"]

1. e4 {[%clk 0:03:00.9]} 1... c6 {[%clk 0:03:00]} 2. d4 {[%clk 0:02:55.3]} 2...
d5 {[%clk 0:03:00]} 3. e5 {[%clk 0:02:54.4]} 3... Bf5 {[%clk 0:02:59.9]} 4. h4
{[%clk 0:02:53.9]} 4... h5 {[%clk 0:02:59.7]} 5. Bd3 {[%clk 0:02:53.7]} 5...
Bxd3 {[%clk 0:02:59.6]} 6. Qxd3 {[%clk 0:02:54.6]} 6... e6 {[%clk 0:03:00.1]} 7.
Bg5 {[%clk 0:02:52.4]} 7... Be7 {[%clk 0:03:00.3]} 8. Nf3 {[%clk 0:02:48.3]}
8... Bxg5 {[%clk 0:02:59.8]} 9. Nxg5 {[%clk 0:02:38.8]} 9... Ne7 {[%clk
0:02:59.2]} 10. Nd2 {[%clk 0:02:34.3]} 10... Nf5 {[%clk 0:02:59.3]} 11. Nf1
{[%clk 0:02:21]} 11... Nxh4 {[%clk 0:02:50.4]} 12. Qg3 {[%clk 0:02:16.7]} 12...
Nf5 {[%clk 0:02:48.2]} 13. Qf4 {[%clk 0:02:16.5]} 13... Qb6 {[%clk 0:02:35.4]}
14. O-O-O {[%clk 0:02:13.9]} 14... Rh6 {[%clk 0:02:28.1]} 15. Ng3 {[%clk
0:02:10.3]} 15... Qc7 {[%clk 0:01:46.3]} 16. Nxh5 {[%clk 0:01:57.1]} 16... Rg6
{[%clk 0:01:41.4]} 17. g4 {[%clk 0:01:40.9]} 17... Nh6 {[%clk 0:01:40.9]} 18.
Nxg7+ {[%clk 0:01:38.9]} 18... Rxg7 {[%clk 0:01:40.9]} 19. Rxh6 {[%clk
0:01:38.8]} 19... Nd7 {[%clk 0:01:40.9]} 20. Rh8+ {[%clk 0:01:29.7]} 20... Nf8
{[%clk 0:01:40.9]} 21. Rxf8+ {[%clk 0:01:29.4]} 21... Kxf8 {[%clk 0:01:38.3]}
22. Nxe6+ {[%clk 0:01:29.5]} 1-0

[Event "*** Titled Tuesday Blitz"]
[Site "Chess.com"]
[Date "2020.05.19"]
[Round "10"]
[White "Salem-AR"]
[Black "Paralinch"]
[Result "1-0"]
[WhiteElo "3047"]
[BlackElo "2873"]
[TimeControl "180+1"]
[EndTime "13:53:40 PDT"]
[Termination "Salem-AR won by resignation"]

1. d4 {[%clk 0:03:00.9]} 1... d5 {[%clk 0:03:00.1]} 2. c4 {[%clk 0:03:00.5]}
2... dxc4 {[%clk 0:03:01]} 3. Nf3 {[%clk 0:03:00.7]} 3... a6 {[%clk 0:02:59.9]}
4. e4 {[%clk 0:03:00.2]} 4... b5 {[%clk 0:02:59.7]} 5. Nc3 {[%clk 0:03:00.2]}
5... Bb7 {[%clk 0:02:59.8]} 6. a4 {[%clk 0:03:00.1]} 6... b4 {[%clk 0:02:58.9]}
7. Bxc4 {[%clk 0:03:00]} 7... e6 {[%clk 0:02:59.5]} 8. Qb3 {[%clk 0:03:00]} 8...
Nc6 {[%clk 0:02:59.8]} 9. a5 {[%clk 0:03:00.3]} 9... Nxd4 {[%clk 0:02:59.4]} 10.
Nxd4 {[%clk 0:03:00.3]} 10... Qxd4 {[%clk 0:03:00.3]} 11. Be3 {[%clk 0:03:00.5]}
11... Qd7 {[%clk 0:02:52.6]} 12. f3 {[%clk 0:03:00.5]} 12... Nf6 {[%clk
0:02:48.8]} 13. O-O {[%clk 0:03:00.1]} 13... Be7 {[%clk 0:02:48.9]} 14. Rfd1
{[%clk 0:02:58.5]} 14... Qc8 {[%clk 0:02:48]} 15. Na4 {[%clk 0:02:58.5]} 15...
O-O {[%clk 0:02:44.9]} 16. Nc5 {[%clk 0:02:58.8]} 16... Bc6 {[%clk 0:02:25.5]}
17. Nxe6 {[%clk 0:02:55.1]} 17... h6 {[%clk 0:02:18.1]} 18. Rac1 {[%clk
0:02:39.3]} 18... Re8 {[%clk 0:02:15.7]} 19. Nf4 {[%clk 0:02:35.9]} 19... Rf8
{[%clk 0:01:29.8]} 20. Ng6 {[%clk 0:02:33.6]} 20... Qe8 {[%clk 0:01:29.8]} 21.
Nxf8 {[%clk 0:02:27.9]} 21... Ba4 {[%clk 0:01:29.3]} 22. Bxf7+ {[%clk
0:02:23.1]} 22... Kxf8 {[%clk 0:01:29.8]} 23. Bxe8 {[%clk 0:02:14]} 23... Bxb3
{[%clk 0:01:29.7]} 24. Bc6 {[%clk 0:02:14.6]} 24... Rb8 {[%clk 0:01:23.9]} 25.
Rd3 {[%clk 0:02:07.3]} 25... Be6 {[%clk 0:01:23.8]} 26. Ba7 {[%clk 0:01:59.9]}
26... Rc8 {[%clk 0:01:22.7]} 27. Bb7 {[%clk 0:01:59.9]} 27... Re8 {[%clk
0:01:23.3]} 28. Rxc7 {[%clk 0:01:58.7]} 1-0

[Event "*** Titled Tuesday Blitz"]
[Site "Chess.com"]
[Date "2020.05.19"]
[Round "10"]
[White "pastouche06"]
[Black "Lion-Al-Messi"]
[Result "0-1"]
[WhiteElo "2429"]
[BlackElo "2348"]
[TimeControl "180+1"]
[EndTime "13:53:42 PDT"]
[Termination "Lion-Al-Messi won by resignation"]

1. d4 {[%clk 0:03:00.9]} 1... d5 {[%clk 0:02:59.8]} 2. c4 {[%clk 0:03:00.6]}
2... c6 {[%clk 0:02:59.7]} 3. Nf3 {[%clk 0:03:00.7]} 3... Nf6 {[%clk 0:02:59.5]}
4. Qc2 {[%clk 0:03:01.1]} 4... g6 {[%clk 0:02:58.6]} 5. Bf4 {[%clk 0:03:00.8]}
5... Bg7 {[%clk 0:02:58.7]} 6. e3 {[%clk 0:03:00.9]} 6... O-O {[%clk 0:02:58.7]}
7. Nc3 {[%clk 0:03:00.7]} 7... c5 {[%clk 0:02:58.2]} 8. dxc5 {[%clk 0:02:59.9]}
8... Qa5 {[%clk 0:02:57.7]} 9. Rd1 {[%clk 0:02:59.8]} 9... Ne4 {[%clk
0:02:55.2]} 10. Be5 {[%clk 0:02:41]} 10... f6 {[%clk 0:02:52]} 11. cxd5 {[%clk
0:02:34.2]} 11... fxe5 {[%clk 0:02:47]} 12. Qxe4 {[%clk 0:02:33.7]} 12... Bf5
{[%clk 0:02:47.2]} 13. Qa4 {[%clk 0:02:33.1]} 13... Qxc5 {[%clk 0:02:44.5]} 14.
e4 {[%clk 0:02:25.1]} 14... Bg4 {[%clk 0:02:40.5]} 15. Be2 {[%clk 0:02:25.3]}
15... a6 {[%clk 0:02:33]} 16. O-O {[%clk 0:02:01.3]} 16... b5 {[%clk 0:02:32.8]}
17. Qb3 {[%clk 0:02:01.7]} 17... Kh8 {[%clk 0:02:24.8]} 18. Ng5 {[%clk
0:01:55.6]} 18... Bd7 {[%clk 0:02:24.1]} 19. d6 {[%clk 0:01:39.5]} 19... h6
{[%clk 0:02:23.6]} 20. dxe7 {[%clk 0:01:31.1]} 20... Qxe7 {[%clk 0:02:22.5]} 21.
Nf3 {[%clk 0:01:31.3]} 21... Nc6 {[%clk 0:02:20.9]} 22. Nd5 {[%clk 0:01:27.8]}
22... Qf7 {[%clk 0:02:15.9]} 23. Nb6 {[%clk 0:01:26.3]} 23... Be6 {[%clk
0:02:15.7]} 24. Qc3 {[%clk 0:01:21.4]} 24... Nd4 {[%clk 0:02:15.8]} 25. Nxd4
{[%clk 0:01:09.9]} 25... exd4 {[%clk 0:02:16.7]} 26. Qg3 {[%clk 0:01:03]} 26...
Rae8 {[%clk 0:02:06.8]} 27. Nd5 {[%clk 0:01:03.2]} 27... Bxd5 {[%clk 0:02:06.9]}
28. exd5 {[%clk 0:01:04.1]} 28... Rxe2 {[%clk 0:02:06.7]} 0-1

[Event "*** Titled Tuesday Blitz"]
[Site "Chess.com"]
[Date "2020.05.19"]
[Round "10"]
[White "Sam_ChessMood"]
[Black "Evgeny81"]
[Result "1-0"]
[WhiteElo "2874"]
[BlackElo "2722"]
[TimeControl "180+1"]
[EndTime "13:53:45 PDT"]
[Termination "Sam_ChessMood won by resignation"]

1. e4 {[%clk 0:03:00.9]} 1... e6 {[%clk 0:03:00.9]} 2. d4 {[%clk 0:03:00.5]}
2... d5 {[%clk 0:03:01.2]} 3. Nc3 {[%clk 0:03:01.2]} 3... Nf6 {[%clk 0:03:01.4]}
4. e5 {[%clk 0:03:01.1]} 4... Nfd7 {[%clk 0:03:01]} 5. f4 {[%clk 0:03:01.7]}
5... c5 {[%clk 0:03:01.3]} 6. Nf3 {[%clk 0:03:02.4]} 6... Nc6 {[%clk 0:03:01.7]}
7. Be3 {[%clk 0:03:02.7]} 7... Be7 {[%clk 0:03:01.7]} 8. Qd2 {[%clk 0:03:02.4]}
8... O-O {[%clk 0:03:01.3]} 9. dxc5 {[%clk 0:03:02.9]} 9... Nxc5 {[%clk
0:02:59.6]} 10. O-O-O {[%clk 0:03:02.9]} 10... a6 {[%clk 0:02:58.7]} 11. h4
{[%clk 0:03:02.7]} 11... b5 {[%clk 0:02:57.6]} 12. Bd3 {[%clk 0:03:02.8]} 12...
Nxd3+ {[%clk 0:02:53.2]} 13. Qxd3 {[%clk 0:03:02.5]} 13... b4 {[%clk 0:02:46.2]}
14. Na4 {[%clk 0:03:02.4]} 14... a5 {[%clk 0:02:44.1]} 15. Ng5 {[%clk
0:03:02.6]} 15... g6 {[%clk 0:02:40]} 16. Bc5 {[%clk 0:03:02.8]} 16... Ba6
{[%clk 0:02:36]} 17. Qg3 {[%clk 0:03:02.7]} 17... Bb5 {[%clk 0:02:31.1]} 18.
Bxe7 {[%clk 0:03:02.8]} 18... Nxe7 {[%clk 0:02:29.9]} 19. h5 {[%clk 0:03:02.7]}
19... Nf5 {[%clk 0:02:26.2]} 20. Qh3 {[%clk 0:03:02.9]} 20... Bxa4 {[%clk
0:02:10.3]} 21. hxg6 {[%clk 0:02:59.7]} 21... h6 {[%clk 0:02:10.3]} 22. g4
{[%clk 0:02:59.9]} 22... Qc7 {[%clk 0:01:58.8]} 23. Rd2 {[%clk 0:02:47.2]} 23...
Qc4 {[%clk 0:01:23.8]} 24. gxf5 {[%clk 0:02:03.5]} 24... Qxa2 {[%clk 0:01:23.5]}
25. Rg2 {[%clk 0:01:58.3]} 25... Qa1+ {[%clk 0:01:15.3]} 26. Kd2 {[%clk
0:01:57]} 26... Qxb2 {[%clk 0:01:12.6]} 27. gxf7+ {[%clk 0:01:56.7]} 27... Rxf7
{[%clk 0:01:12.2]} 28. Nxe6+ {[%clk 0:01:56.4]} 1-0

[Event "*** Titled Tuesday Blitz"]
[Site "Chess.com"]
[Date "2020.05.19"]
[Round "10"]
[White "Eltaj_Safarli"]
[Black "Firouzja2003"]
[Result "1/2-1/2"]
[WhiteElo "3011"]
[BlackElo "3167"]
[TimeControl "180+1"]
[EndTime "13:53:46 PDT"]
[Termination "Game drawn by repetition"]

1. e4 {[%clk 0:03:00.9]} 1... c6 {[%clk 0:02:58.8]} 2. d4 {[%clk 0:03:00.3]}
2... d5 {[%clk 0:02:59.1]} 3. exd5 {[%clk 0:03:01.2]} 3... cxd5 {[%clk
0:02:59.3]} 4. c4 {[%clk 0:03:01.9]} 4... Nf6 {[%clk 0:02:57.4]} 5. Nc3 {[%clk
0:03:02.3]} 5... e6 {[%clk 0:02:56.1]} 6. Nf3 {[%clk 0:03:02.2]} 6... Be7 {[%clk
0:02:54.1]} 7. cxd5 {[%clk 0:03:02.4]} 7... Nxd5 {[%clk 0:02:53.2]} 8. Bd3
{[%clk 0:03:02.6]} 8... O-O {[%clk 0:02:52.9]} 9. O-O {[%clk 0:03:02.9]} 9...
Nc6 {[%clk 0:02:52.7]} 10. Re1 {[%clk 0:03:03.4]} 10... h6 {[%clk 0:02:45.3]}
11. a3 {[%clk 0:02:53.7]} 11... b6 {[%clk 0:02:40.2]} 12. Qe2 {[%clk 0:02:40.7]}
12... Bb7 {[%clk 0:02:35.6]} 13. Bd2 {[%clk 0:02:28.7]} 13... Nf6 {[%clk
0:02:27]} 14. Be3 {[%clk 0:02:25.9]} 14... Rc8 {[%clk 0:02:26.5]} 15. Rad1
{[%clk 0:02:25.8]} 15... Qc7 {[%clk 0:02:11.6]} 16. Qd2 {[%clk 0:02:15.2]} 16...
Rfd8 {[%clk 0:01:57.9]} 17. Bxh6 {[%clk 0:02:00.1]} 17... gxh6 {[%clk
0:01:38.3]} 18. Qxh6 {[%clk 0:02:01]} 18... Nxd4 {[%clk 0:01:38.3]} 19. Qg5+
{[%clk 0:01:33.2]} 19... Kf8 {[%clk 0:01:37.5]} 20. Qh6+ {[%clk 0:01:33.3]}
20... Kg8 {[%clk 0:01:38]} 21. Qg5+ {[%clk 0:01:29.6]} 21... Kf8 {[%clk
0:01:37.1]} 22. Qh6+ {[%clk 0:01:28]} 22... Kg8 {[%clk 0:01:22.6]} 1/2-1/2

[Event "*** Titled Tuesday Blitz"]
[Site "Chess.com"]
[Date "2020.05.19"]
[Round "10"]
[White "MisiekZielony"]
[Black "NefeLV"]
[Result "1-0"]
[WhiteElo "2092"]
[BlackElo "1820"]
[TimeControl "180+1"]
[EndTime "13:54:26 PDT"]
[Termination "MisiekZielony won by resignation"]

1. c4 {[%clk 0:03:00]} 1... e5 {[%clk 0:02:58.6]} 2. Nc3 {[%clk 0:02:59.4]} 2...
c6 {[%clk 0:02:57.7]} 3. Nf3 {[%clk 0:02:59.3]} 3... d6 {[%clk 0:02:55.7]} 4. d4
{[%clk 0:02:58.9]} 4... exd4 {[%clk 0:02:54.2]} 5. Nxd4 {[%clk 0:02:58.8]} 5...
Nf6 {[%clk 0:02:54.2]} 6. g3 {[%clk 0:02:58.8]} 6... Be7 {[%clk 0:02:53.7]} 7.
Bg2 {[%clk 0:02:58.7]} 7... O-O {[%clk 0:02:53.8]} 8. O-O {[%clk 0:02:59.2]}
8... Bg4 {[%clk 0:02:52.6]} 9. h3 {[%clk 0:02:58.9]} 9... Bd7 {[%clk 0:02:52.2]}
10. e4 {[%clk 0:02:58.5]} 10... Qc8 {[%clk 0:02:51.9]} 11. Kh2 {[%clk
0:02:58.3]} 11... c5 {[%clk 0:02:49.5]} 12. Ndb5 {[%clk 0:02:57.5]} 12... Bxb5
{[%clk 0:02:47]} 13. Nxb5 {[%clk 0:02:57]} 13... Qc6 {[%clk 0:02:45.5]} 14. e5
{[%clk 0:02:56.4]} 14... Ne4 {[%clk 0:02:41.2]} 15. Re1 {[%clk 0:02:52.7]} 15...
f5 {[%clk 0:02:40.3]} 16. exf6 {[%clk 0:02:52.3]} 16... Bxf6 {[%clk 0:02:37.1]}
17. Bxe4 {[%clk 0:02:50.1]} 17... Qb6 {[%clk 0:02:36.2]} 18. Qd5+ {[%clk
0:02:49]} 18... Kh8 {[%clk 0:02:34.8]} 19. Qxb7 {[%clk 0:02:48.6]} 19... Na6
{[%clk 0:02:32.3]} 20. Qxb6 {[%clk 0:02:47.9]} 20... axb6 {[%clk 0:02:32.8]} 21.
Bxa8 {[%clk 0:02:47.5]} 21... Rxa8 {[%clk 0:02:33.7]} 22. Nxd6 {[%clk
0:02:45.3]} 22... Nb4 {[%clk 0:02:30.3]} 23. Rb1 {[%clk 0:02:43.5]} 23... Nd3
{[%clk 0:02:23.6]} 24. Re2 {[%clk 0:02:42.7]} 24... h6 {[%clk 0:02:20.8]} 25.
Be3 {[%clk 0:02:22.3]} 25... Rxa2 {[%clk 0:02:17]} 26. Ne4 {[%clk 0:02:21]}
26... Bd4 {[%clk 0:01:52.8]} 27. Bxd4 {[%clk 0:02:15]} 27... cxd4 {[%clk
0:01:53.7]} 28. Rd2 {[%clk 0:02:14.3]} 28... Ne5 {[%clk 0:01:53.7]} 29. Kg2
{[%clk 0:02:11.8]} 29... Nc6 {[%clk 0:01:52.3]} 30. b4 {[%clk 0:02:07.9]} 30...
Ra4 {[%clk 0:01:48.7]} 31. b5 {[%clk 0:02:07.3]} 31... Ne5 {[%clk 0:01:46.5]}
32. Rxd4 {[%clk 0:02:05.8]} 32... Kh7 {[%clk 0:01:44.2]} 33. Nd6 {[%clk
0:01:54.1]} 33... Ra2 {[%clk 0:01:39.6]} 34. Re1 {[%clk 0:01:52.8]} 34... Nd7
{[%clk 0:01:38]} 35. Re7 {[%clk 0:01:48.6]} 35... Nc5 {[%clk 0:01:34.7]} 36. Rg4
{[%clk 0:01:47.7]} 36... Nd3 {[%clk 0:01:31.1]} 37. Rgxg7+ {[%clk 0:01:46.1]}
37... Kh8 {[%clk 0:01:30.7]} 38. Rgf7 {[%clk 0:01:31.3]} 1-0

[Event "*** Titled Tuesday Blitz"]
[Site "Chess.com"]
[Date "2020.05.19"]
[Round "10"]
[White "fodorpoti"]
[Black "Nikolaj_6"]
[Result "1-0"]
[WhiteElo "2765"]
[BlackElo "2572"]
[TimeControl "180+1"]
[EndTime "13:54:33 PDT"]
[Termination "fodorpoti won by resignation"]

1. d4 {[%clk 0:03:00.9]} 1... Nf6 {[%clk 0:02:59.7]} 2. c4 {[%clk 0:03:00.9]}
2... c5 {[%clk 0:02:59.9]} 3. d5 {[%clk 0:03:01]} 3... e6 {[%clk 0:03:00.4]} 4.
Nc3 {[%clk 0:03:00.7]} 4... exd5 {[%clk 0:03:00.7]} 5. cxd5 {[%clk 0:03:01.4]}
5... d6 {[%clk 0:03:01.2]} 6. Nf3 {[%clk 0:03:02]} 6... g6 {[%clk 0:03:01.4]} 7.
Bf4 {[%clk 0:03:02.7]} 7... Bg7 {[%clk 0:03:00.5]} 8. h3 {[%clk 0:03:03.3]} 8...
O-O {[%clk 0:03:00]} 9. e3 {[%clk 0:03:03.9]} 9... Na6 {[%clk 0:02:59.4]} 10.
Be2 {[%clk 0:02:59.1]} 10... Nc7 {[%clk 0:02:59.1]} 11. O-O {[%clk 0:02:59.3]}
11... a6 {[%clk 0:02:58.6]} 12. a4 {[%clk 0:02:59.2]} 12... Rb8 {[%clk
0:02:58.8]} 13. a5 {[%clk 0:02:56.5]} 13... b5 {[%clk 0:02:58.9]} 14. axb6
{[%clk 0:02:56.5]} 14... Rxb6 {[%clk 0:02:59.1]} 15. Nd2 {[%clk 0:02:54]} 15...
Ncxd5 {[%clk 0:02:43.8]} 16. Nc4 {[%clk 0:02:49.8]} 16... Nxf4 {[%clk 0:02:28]}
17. exf4 {[%clk 0:02:49.8]} 17... Rb4 {[%clk 0:02:19.6]} 18. Nxd6 {[%clk
0:02:47.9]} 18... Rxb2 {[%clk 0:02:16.5]} 19. Nxc8 {[%clk 0:02:47]} 19... Qxc8
{[%clk 0:02:16.1]} 20. Rxa6 {[%clk 0:02:42.7]} 20... Nh5 {[%clk 0:02:09]} 21.
Nd5 {[%clk 0:02:39]} 21... Kh8 {[%clk 0:02:01.1]} 22. Ra7 {[%clk 0:02:28.6]}
22... Nf6 {[%clk 0:01:49.7]} 23. Nxf6 {[%clk 0:02:28.6]} 23... Bxf6 {[%clk
0:01:49.1]} 24. Bc4 {[%clk 0:02:29.2]} 24... Kg7 {[%clk 0:01:43.8]} 25. Qd5
{[%clk 0:02:28]} 25... Qe8 {[%clk 0:01:19.4]} 26. g3 {[%clk 0:02:26.4]} 26...
Bd4 {[%clk 0:01:14.4]} 27. Kg2 {[%clk 0:02:22.4]} 27... Rd2 {[%clk 0:01:08.2]}
28. h4 {[%clk 0:02:22.2]} 28... Be3 {[%clk 0:00:56.4]} 29. Qf3 {[%clk
0:02:21.9]} 29... Bd4 {[%clk 0:00:56.1]} 30. h5 {[%clk 0:02:22.2]} 30... Rc2
{[%clk 0:00:50.4]} 31. Qd5 {[%clk 0:02:17.9]} 31... Kg8 {[%clk 0:00:44.3]} 32.
hxg6 {[%clk 0:02:15.3]} 32... hxg6 {[%clk 0:00:44]} 33. f5 {[%clk 0:02:15.4]}
33... Qe5 {[%clk 0:00:40.2]} 34. fxg6 {[%clk 0:02:11.9]} 34... Qxd5+ {[%clk
0:00:40.1]} 35. Bxd5 {[%clk 0:02:12.1]} 35... Kg7 {[%clk 0:00:37.3]} 36. Bxf7
{[%clk 0:02:10.6]} 36... c4 {[%clk 0:00:34.7]} 37. Rc7 {[%clk 0:02:09.3]} 37...
c3 {[%clk 0:00:34.5]} 38. Bb3+ {[%clk 0:02:08.4]} 1-0

[Event "*** Titled Tuesday Blitz"]
[Site "Chess.com"]
[Date "2020.05.19"]
[Round "10"]
[White "Koalaskakistis"]
[Black "mjray79"]
[Result "1-0"]
[WhiteElo "2460"]
[BlackElo "2304"]
[TimeControl "180+1"]
[EndTime "13:54:33 PDT"]
[Termination "Koalaskakistis won by resignation"]

1. f4 {[%clk 0:03:00.9]} 1... g6 {[%clk 0:02:57.3]} 2. Nf3 {[%clk 0:03:00.6]}
2... Bg7 {[%clk 0:02:57.8]} 3. g3 {[%clk 0:03:01.1]} 3... Nf6 {[%clk 0:02:58.4]}
4. Bg2 {[%clk 0:03:01.5]} 4... d6 {[%clk 0:02:59]} 5. O-O {[%clk 0:03:02]} 5...
O-O {[%clk 0:02:59.6]} 6. d3 {[%clk 0:03:02.1]} 6... c5 {[%clk 0:02:59.6]} 7. e4
{[%clk 0:03:02.4]} 7... Nc6 {[%clk 0:02:59.5]} 8. h3 {[%clk 0:03:01.5]} 8... Rb8
{[%clk 0:02:56.6]} 9. a4 {[%clk 0:03:00.6]} 9... a6 {[%clk 0:02:56.2]} 10. g4
{[%clk 0:03:00.2]} 10... b5 {[%clk 0:02:55.9]} 11. axb5 {[%clk 0:02:59.6]} 11...
axb5 {[%clk 0:02:55.2]} 12. f5 {[%clk 0:02:59.9]} 12... e6 {[%clk 0:02:47.4]}
13. g5 {[%clk 0:02:59.3]} 13... Nh5 {[%clk 0:02:43.4]} 14. f6 {[%clk 0:02:59.2]}
14... Bh8 {[%clk 0:02:43.8]} 15. Qe1 {[%clk 0:02:53.6]} 15... e5 {[%clk
0:02:40.5]} 16. Qh4 {[%clk 0:02:50.4]} 16... d5 {[%clk 0:02:39.8]} 17. exd5
{[%clk 0:02:41.6]} 17... Qxd5 {[%clk 0:02:40.7]} 18. Be3 {[%clk 0:02:41.7]}
18... c4 {[%clk 0:02:21.7]} 19. Nd4 {[%clk 0:02:36.6]} 19... Qxd4 {[%clk
0:02:04.8]} 20. Bxd4 {[%clk 0:02:35.5]} 20... Nxd4 {[%clk 0:02:05.2]} 21. Na3
{[%clk 0:02:18.6]} 21... Nf5 {[%clk 0:01:56.5]} 22. Qf2 {[%clk 0:02:15]} 22...
Nhg3 {[%clk 0:01:55.9]} 23. Rfe1 {[%clk 0:02:09.4]} 23... cxd3 {[%clk
0:01:54.5]} 24. cxd3 {[%clk 0:02:08.2]} 24... h6 {[%clk 0:01:41]} 25. h4 {[%clk
0:02:07.6]} 25... Bb7 {[%clk 0:01:34.5]} 26. Rxe5 {[%clk 0:01:54.1]} 26... Bxg2
{[%clk 0:01:33.7]} 27. Qxg2 {[%clk 0:01:52.8]} 27... Rbd8 {[%clk 0:01:28.7]} 28.
Rae1 {[%clk 0:01:46]} 28... b4 {[%clk 0:01:23.5]} 29. Nc4 {[%clk 0:01:43.4]}
29... Rxd3 {[%clk 0:01:23.3]} 30. Ne3 {[%clk 0:01:40.8]} 30... hxg5 {[%clk
0:01:06.5]} 31. hxg5 {[%clk 0:01:37]} 31... Rfd8 {[%clk 0:01:03.9]} 32. Nxf5
{[%clk 0:01:33.2]} 32... Nxf5 {[%clk 0:01:04.8]} 33. Re8+ {[%clk 0:01:32.6]}
33... Rxe8 {[%clk 0:01:02.3]} 34. Rxe8+ {[%clk 0:01:33.5]} 34... Kh7 {[%clk
0:01:02.7]} 35. Qh2+ {[%clk 0:01:33.6]} 1-0